bitfinex-derivatives/quotes_ETHF0:USTF0_20241129
["timestamp","ask_amount","ask_price","bid_price","bid_amount"]
[1732847989742,0.27889,3585.0,3584.7,0.27891]
[1732847989937,0.27889,3585.1,3584.8,0.39676998]
[1732847990244,0.27889,3585.1,3584.9,0.11785998]
[1732847990440,2.12220898,3585.5,3584.5,40.8]
[1732847990441,2.12220898,3585.5,3585.0,0.11785998]
[1732847990635,2.12220898,3585.5,3585.1,0.11785998]
[1732847990842,0.27886,3585.4,3585.2,0.11784505]
[1732847991042,0.27889,3585.1,3584.7,3.48671]
[1732847991342,2.12220898,3585.5,3584.8,0.11785151]
[1732847991646,0.27889,3585.1,3584.7,3.48671]
[1732847991945,0.27889,3585.1,3584.7,3.8]
[1732847992445,3.2078,3585.7,3584.7,9.7974]
[1732847992644,2.34903074,3585.9,3584.7,7.0078]
[1732847992645,2.12220898,3585.9,3584.7,7.0078]
[1732847992845,0.27887,3585.3,3584.8,0.27891]
[1732847993041,3.2078,3585.7,3584.8,4.15]
[1732847993237,0.27887,3585.3,3584.8,4.42891]
[1732847993444,3.2078,3585.7,3584.8,4.15]
[1732847993746,0.27887,3585.4,3584.9,0.2789]
[1732847993946,0.27887,3585.4,3584.9,4.0789]
[1732847994147,3.2078,3585.7,3585.0,0.4143]
[1732847994348,0.27887,3585.3,3585.1,0.4061]
[1732847994645,0.27887,3585.3,3585.1,1.2461]
[1732847995747,0.27888,3585.2,3585.1,1.2461]
[1732847997349,0.4402,3585.6,3585.1,1.2461]
[1732847997643,0.27888,3585.3,3585.1,1.2461]
[1732847997846,0.27885,3585.5,3585.1,1.2461]
[1732847998141,0.27888,3585.2,3585.1,1.2461]
[1732847998548,0.27887,3585.3,3585.1,1.2461]
[1732847998749,0.4402,3585.6,3585.1,1.2461]
[1732847999245,0.27887,3585.4,3585.1,1.2461]
[1732847999442,0.27888,3585.3,3585.1,1.2461]
[1732847999741,0.27888,3585.2,3585.1,1.2461]
[1732848000138,0.27887,3585.3,3585.1,1.2461]
[1732848000338,0.27887,3585.4,3585.1,1.2461]
[1732848000543,0.27886,3585.5,3585.1,1.52498]
[1732848000739,0.71905,3585.6,3585.1,1.52498]
[1732848000944,0.27885,3585.5,3585.1,1.94568]
[1732848001148,0.27885,3585.5,3585.1,1.6668]
[1732848001345,4.80507168,3585.6,3585.1,1.6668]
[1732848001752,3.56571541,3585.4,3585.1,1.6668]
[1732848002153,3.28684541,3585.4,3585.1,1.6668]
[1732848002351,0.27887,3585.3,3585.1,1.6668]
[1732848002654,3.28684541,3585.4,3585.3,0.27887]
[1732848002848,3.6132,3586.1,3585.3,4.63887]
[1732848002849,3.56568541,3585.8,3585.3,4.63887]
[1732848003147,3.56568541,3585.8,3585.3,4.36]
[1732848003148,3.28684541,3585.8,3585.3,4.36]
[1732848003355,0.27885,3585.6,3585.3,4.36]
[1732848003648,3.28684541,3585.9,3585.3,4.36]
[1732848003851,3.28684541,3585.8,3585.4,40.8]
[1732848004055,0.27884,3585.7,3585.4,44.9]
[1732848004564,0.27885,3585.5,3585.4,44.9]
[1732848004763,5.40905439,3585.9,3585.4,1.13]
[1732848004965,3.28684541,3585.8,3585.4,1.13]
[1732848005162,0.27885,3585.6,3585.4,1.13]
[1732848005465,5.40905439,3585.9,3585.4,1.13]
[1732848005764,0.27885,3585.5,3585.4,1.13]
[1732848006356,3.56569541,3585.5,3585.4,1.13]
[1732848006566,8.19785439,3585.5,3585.0,0.4143]
[1732848006763,3.28535604,3585.1,3585.0,0.5343]
[1732848007064,3.28535604,3585.1,3585.0,41.3343]
[1732848007065,3.56424604,3585.1,3585.0,41.3343]
[1732848007271,3.28535604,3585.1,3585.0,41.3343]
[1732848007565,3.56424604,3585.1,3585.0,41.3343]
[1732848008472,3.56424604,3585.1,3585.0,43.0743]
[1732848008666,8.19716502,3585.1,3584.7,0.4246]
[1732848008970,8.19716502,3585.1,3584.3,0.8403]
[1732848008971,0.27895,3584.4,3584.3,0.8403]
[1732848009168,0.27895,3584.4,3584.3,40.8]
[1732848009169,3.56480866,3584.4,3584.3,40.8]
[1732848009375,0.27894,3584.4,3584.3,40.8]
[1732848009567,4.64381168,3584.4,3584.3,40.8]
[1732848009765,4.64381168,3584.5,3584.3,40.8]
[1732848010277,4.36487168,3584.5,3584.3,40.8]
[1732848010459,3.28558258,3584.4,3584.3,45.04895]
[1732848010776,3.28558258,3584.6,3584.3,45.04894]
[1732848010966,3.28558258,3584.6,3584.4,0.4059]
[1732848011266,3.28558258,3584.6,3584.4,5.15484]
[1732848011669,3.28558258,3584.6,3584.5,0.3150193]
[1732848011974,3.28558258,3584.8,3584.5,7.1828193]
[1732848012169,0.27891,3584.8,3584.6,0.7298193]
[1732848012372,3.56449258,3584.8,3584.7,0.3150193]
[1732848012570,4.64378168,3584.8,3584.7,0.3150193]
[1732848012962,0.27891,3584.8,3584.7,0.3150193]
[1732848013268,4.65963001,3584.8,3584.7,0.3150193]
[1732848013466,0.27891,3584.8,3584.7,0.3150193]
[1732848013872,0.27891,3584.8,3584.7,0.31503858]
[1732848014776,6.4932119,3584.9,3584.7,0.31503858]
[1732848014980,0.2789,3584.9,3584.8,0.31503858]
[1732848015268,0.2789,3584.9,3584.8,0.72593858]
[1732848016674,0.2789,3584.9,3584.8,0.31503858]
[1732848017274,3.5643119,3584.9,3584.8,0.31483196]
[1732848017575,3.5643119,3584.9,3584.8,0.31480912]
[1732848017778,0.2789,3584.9,3584.8,0.31480952]
[1732848018272,3.5643119,3584.9,3584.8,0.12107786]
[1732848018667,0.2789,3584.9,3584.8,0.12107786]
[1732848018871,3.56410713,3584.9,3584.8,0.12107786]
[1732848020175,3.0685,3584.9,3584.8,0.12107786]
[1732848021582,3.0685,3584.9,3584.8,0.12103467]
[1732848021876,3.0685,3584.9,3584.3,40.8]
[1732848021877,7.17032001,3584.9,3584.3,40.8]
[1732848022081,3.28537201,3584.7,3584.4,0.31472781]
[1732848022277,3.28537201,3584.8,3584.5,0.3147116]
[1732848022583,0.27894,3584.4,3584.3,40.8]
[1732848022770,0.27894,3584.4,3584.3,41.11470061]
[1732848024773,0.27894,3584.4,3584.3,40.92102734]
[1732848025677,0.27894,3584.4,3584.3,45.13102734]
[1732848025882,0.27894,3584.4,3584.3,45.01]
[1732848026277,0.27894,3584.4,3584.3,45.12864542]
[1732848027682,0.27894,3584.4,3584.3,45.12864733]
[1732848029875,3.48504,3584.4,3584.3,0.11864733]
[1732848030180,0.27899,3583.7,3583.6,0.4042]
[1732848030385,0.27899,3583.7,3583.6,0.94285889]
[1732848030582,0.27899,3583.7,3583.6,0.53865889]
[1732848031674,0.27899,3583.7,3583.6,0.11865889]
[1732848032480,8.39939898,3583.7,3583.6,0.11865889]
[1732848032683,0.27906,3582.9,3582.8,0.4063]
[1732848032993,0.27906,3582.9,3582.8,41.32499406]
[1732848037783,0.27906,3582.9,3582.8,41.2063]
[1732848037985,0.27906,3582.9,3582.8,41.32484488]
[1732848038788,0.27906,3582.9,3582.8,0.11854488]
[1732848038996,3.2078,3583.3,3582.6,3.2078]
[1732848038997,0.27907,3582.7,3582.6,3.2078]
[1732848039190,0.27907,3582.7,3582.6,3.32634038]
[1732848039390,0.27907,3582.7,3582.6,44.12634038]
[1732848039588,0.27907,3582.8,3582.6,44.12634038]
[1732848039892,3.2078,3583.3,3582.7,0.56094038]
[1732848040189,0.27906,3582.9,3582.8,0.8706]
[1732848040391,3.2078,3583.3,3582.8,1.0806]
[1732848040592,0.27906,3582.9,3582.8,1.0806]
[1732848042495,3.2078,3583.3,3582.8,1.0806]
[1732848042697,0.27906,3582.9,3582.8,1.0806]
[1732848042900,3.2078,3583.3,3582.8,1.0806]
[1732848043190,0.27906,3582.9,3582.8,1.0806]
[1732848043791,0.27906,3582.9,3582.8,0.6323]
[1732848045892,3.2078,3583.3,3582.8,0.6323]
[1732848046092,0.27906,3582.9,3582.8,0.6323]
[1732848047999,5.999,3582.9,3582.1,0.439]
[1732848048295,1.0286389,3582.4,3582.0,3.2078]
[1732848048501,3.2078,3582.5,3582.0,3.2078]
[1732848048502,1.3077589,3582.1,3582.0,3.2078]
[1732848048695,1.3077589,3582.1,3582.0,3.32419231]
[1732848049999,1.3077589,3582.1,3582.0,3.2078]
[1732848050299,0.27912,3582.1,3582.0,3.2078]
[1732848052405,0.27912,3582.1,3582.0,3.32422352]
[1732848052895,0.27912,3582.1,3582.0,44.12422352]
[1732848053698,0.27912,3582.1,3582.0,44.0078]
[1732848053905,0.27912,3582.1,3582.0,44.12422433]
[1732848055505,0.27912,3582.1,3582.0,44.0078]
[1732848059201,0.27911,3582.2,3582.0,44.0078]
[1732848060103,3.2078,3582.5,3582.0,44.0078]
[1732848060104,0.27912,3582.1,3582.0,44.0078]
[1732848060500,0.27909,3582.5,3582.1,0.27911]
[1732848060706,1.2525,3582.8,3582.1,0.27911]
[1732848060707,0.2791,3582.4,3582.2,0.8525]
[1732848060902,0.27908,3582.6,3582.3,0.2791]
[1732848061104,0.827,3582.8,3582.3,0.2791]
[1732848061105,0.2791,3582.4,3582.3,3.79]
[1732848061307,0.2791,3582.4,3582.2,0.8525]
[1732848061504,0.2791,3582.4,3582.2,5.1925]
[1732848061804,0.27908,3582.6,3582.2,5.47161]
[1732848062201,0.827,3582.8,3582.2,5.1925]
[1732848062701,0.2791,3582.3,3582.2,5.1925]
[1732848062907,0.2791,3582.3,3582.2,2.9425]
[1732848063103,0.2791,3582.3,3582.2,5.7337]
[1732848063296,0.827,3582.8,3582.2,5.7337]
[1732848063496,0.27908,3582.6,3582.2,3.22161]
[1732848064010,0.2791,3582.4,3582.2,2.9425]
[1732848064204,0.827,3582.8,3582.2,2.9425]
[1732848064405,0.27909,3582.5,3582.2,2.9425]
[1732848064604,0.827,3582.8,3582.2,2.9425]
[1732848064910,0.27906,3582.9,3582.5,0.27908]
[1732848065108,0.27906,3582.9,3582.5,2.61908]
[1732848065607,0.27905,3583.0,3582.6,0.27908]
[1732848065809,0.27905,3583.0,3582.7,0.4243]
[1732848066004,0.8469,3583.2,3582.7,0.4243]
[1732848067005,0.27906,3582.8,3582.7,0.4243]
[1732848067203,0.8469,3583.2,3582.7,0.4243]
[1732848067612,0.27906,3582.8,3582.7,0.4243]
[1732848067806,5.33629687,3583.0,3582.7,0.11629091]
[1732848068001,0.27906,3582.9,3582.8,0.11629091]
[1732848068504,0.27907,3582.7,3582.4,0.27909]
[1732848068705,0.27907,3582.7,3582.5,0.1163255]
[1732848068905,0.27907,3582.7,3582.6,0.1163255]
[1732848072210,1.30797445,3582.7,3582.6,0.1163255]
[1732848072503,4.09917445,3582.7,3582.6,0.1163255]
[1732848072705,1.30797445,3582.7,3582.6,0.1163255]
[1732848073106,4.09917445,3582.7,3582.6,0.1163255]
[1732848073303,1.30797445,3582.7,3582.6,0.1163255]
[1732848074920,6.28111933,3582.7,3582.6,0.1163255]
[1732848075415,4.09917445,3582.7,3582.6,0.1163255]
[1732848076409,7.38356239,3582.7,3582.6,0.1163255]
[1732848076607,8.41246684,3582.7,3582.6,0.1163255]
[1732848076808,5.1280789,3582.7,3582.6,0.11646452]
[1732848077511,9.50879891,3582.7,3582.6,0.11646452]
[1732848078313,5.1280789,3582.7,3582.6,0.11646452]
[1732848078815,5.1280789,3582.7,3582.6,0.11652229]
[1732848079017,9.51566749,3582.7,3582.6,0.11652229]
[1732848079409,5.1280789,3582.7,3582.6,0.11652229]
[1732848080105,4.8490089,3582.7,3582.3,0.4203]
[1732848080310,4.59869399,3582.4,3582.3,0.4203]
[1732848080610,4.59869399,3582.4,3582.3,0.53682346]
[1732848082014,1.30800445,3582.4,3582.3,0.53682346]
[1732848082916,4.59869399,3582.4,3582.3,0.53682346]
[1732848084712,1.30800445,3582.4,3582.3,0.53682346]
[1732848085220,4.59869399,3582.4,3582.3,0.53682346]
[1732848085416,2.19408866,3582.6,3582.3,7.52802346]
[1732848085613,4.38758606,3582.9,3582.4,11.46358125]
[1732848085614,2.19408866,3582.8,3582.4,11.46358125]
[1732848085919,2.47314866,3582.9,3582.5,7.5059668]
[1732848086119,2.47314866,3582.9,3582.6,40.91652346]
[1732848086416,2.47314866,3582.9,3582.7,0.11652346]
[1732848086615,2.47314866,3582.9,3582.8,0.11652346]
[1732848086815,2.47314866,3582.9,3582.8,0.53242346]
[1732848087022,0.27906,3582.9,3582.8,0.53242346]
[1732848087212,0.27906,3582.9,3582.8,0.4159]
[1732848087419,3.56974954,3583.0,3582.8,0.5323609]
[1732848087619,3.56974954,3583.0,3582.9,0.5619609]
[1732848087823,3.56974954,3583.0,3582.9,0.9685609]
[1732848089121,3.56974954,3583.0,3582.9,0.5230609]
[1732848089317,4.66664606,3583.0,3582.9,0.1164609]
[1732848089716,0.27906,3583.0,3582.9,0.1164609]
[1732848090223,4.6674208,3583.0,3582.9,0.1164609]
[1732848090419,4.6674208,3583.0,3582.6,0.4445]
[1732848090420,0.27907,3582.7,3582.6,0.4445]
[1732848090619,4.59942674,3582.7,3582.6,0.4445]
[1732848090918,4.59942674,3582.7,3582.6,0.56097435]
[1732848093020,1.30797445,3582.7,3582.6,0.56097435]
[1732848095121,5.69657751,3582.7,3582.6,0.11647435]
[1732848095419,1.30797445,3582.7,3582.6,0.11647435]
[1732848095621,4.60021791,3582.7,3582.6,0.58647435]
[1732848097021,4.60021791,3582.7,3582.6,0.78175177]
[1732848098026,4.60021791,3582.7,3582.6,0.58647435]
[1732848098431,1.30797445,3582.7,3582.6,0.11647435]
[1732848098929,4.60059352,3582.7,3582.6,0.11647435]
[1732848099226,1.30797445,3582.7,3582.6,0.11647435]
[1732848100224,4.60067083,3582.7,3582.6,0.11647435]
[1732848101724,1.30797445,3582.7,3582.6,0.11647435]
[1732848102323,4.60082855,3582.7,3582.6,0.11647435]
[1732848102523,1.30797445,3582.7,3582.6,0.11647435]
[1732848103427,4.38860306,3582.8,3582.6,0.11647435]
[1732848103631,2.19520775,3582.9,3582.7,8.25573214]
[1732848103932,2.19508282,3583.1,3583.0,0.27905]
[1732848104231,3.29310473,3583.3,3583.1,0.27904]
[1732848104423,3.29310473,3583.3,3583.2,0.97867435]
[1732848104623,4.60102918,3583.4,3583.2,2.29329125]
[1732848104820,4.60102918,3583.4,3583.3,0.11979125]
[1732848105023,4.60102918,3583.4,3583.3,0.84979125]
[1732848105633,4.32200918,3583.4,3583.3,0.84979125]
[1732848106724,3.29310473,3583.4,3583.3,1.12882125]
[1732848106925,3.29310473,3583.5,3583.3,1.12881125]
[1732848107224,3.29310473,3583.6,3583.4,0.11979125]
[1732848107427,3.29310473,3583.6,3583.5,0.11979125]
[1732848107633,0.279,3583.6,3583.5,0.11979125]
[1732848109235,7.52980918,3583.7,3583.5,0.39879125]
[1732848109424,4.23670445,3583.7,3583.6,0.11979125]
[1732848109631,4.23670445,3583.7,3583.6,2.93979125]
[1732848110532,4.51569445,3583.7,3583.6,2.93979125]
[1732848111436,4.51569445,3583.7,3583.6,0.11964826]
[1732848112325,4.51569445,3583.7,3583.2,4.78033]
[1732848112326,0.27901,3583.5,3583.2,4.78033]
[1732848112530,0.27901,3583.5,3583.2,6.84033]
[1732848112727,1.02890445,3583.4,3583.2,5.6991]
[1732848112936,0.27903,3583.3,3583.2,2.4913]
[1732848113124,0.70103,3583.3,3583.2,2.4913]
[1732848113324,0.27904,3583.2,3582.8,44.28686]
[1732848113529,0.27904,3583.2,3582.9,0.27906]
[1732848113733,0.27904,3583.2,3582.9,1.07906]
[1732848113930,0.70103,3583.3,3582.9,1.07906]
[1732848114130,0.70103,3583.3,3583.0,0.27905]
[1732848114330,0.70103,3583.3,3583.0,2.95905]
[1732848114630,0.422,3583.3,3583.1,0.39866622]
[1732848114825,0.422,3583.3,3583.1,4.36866622]
[1732848115030,0.70103,3583.3,3583.2,0.11962622]
[1732848116641,6.50090473,3583.7,3583.2,10.00782622]
[1732848116840,3.2078,3583.7,3583.4,0.27901]
[1732848117135,3.2078,3583.7,3583.5,0.11961637]
[1732848117336,3.2078,3583.7,3583.4,1.90901]
[1732848117337,3.2078,3583.7,3583.6,0.11961637]
[1732848120132,3.2078,3583.7,3583.6,0.11957273]
[1732848120537,3.2078,3583.7,3583.6,0.11957183]
[1732848120844,3.2078,3583.7,3583.6,3.31957183]
[1732848121039,1.02890445,3583.8,3583.6,3.59857183]
[1732848121336,1.02890445,3583.8,3583.7,0.11957183]
[1732848121536,1.02890445,3583.8,3583.7,0.28957183]
[1732848122339,6.77985473,3584.3,3583.7,6.28777183]
[1732848122639,1.02890445,3584.1,3584.0,0.27897]
[1732848122839,1.02890445,3584.2,3584.0,41.19854183]
[1732848123033,1.02890445,3584.2,3584.1,0.11957183]
[1732848127733,1.02890445,3584.2,3583.3,4.35073887]
[1732848127936,0.27902,3583.4,3582.8,4.35073887]
[1732848128130,1.72639445,3583.8,3582.8,0.4081]
[1732848128131,0.27906,3582.9,3582.8,0.4081]
[1732848128437,1.02890445,3582.9,3582.6,3.6558]
[1732848128638,1.02890445,3582.9,3582.7,0.27907]
[1732848128843,0.27905,3583.0,3582.6,3.93487]
[1732848129135,1.2752,3583.3,3582.6,7.2158]
[1732848129341,1.02890445,3582.9,3582.6,6.7678]
[1732848129537,1.30796445,3582.9,3582.6,3.2078]
[1732848130038,1.02890445,3583.1,3582.6,3.2078]
[1732848130241,0.27904,3583.1,3582.7,0.27907]
[1732848130542,1.2752,3583.3,3582.7,1.21]
[1732848130543,0.27906,3582.9,3582.7,1.21]
[1732848130742,0.27905,3583.0,3582.7,1.21]
[1732848131035,0.27904,3583.1,3582.8,0.27906]
[1732848131236,0.27904,3583.2,3582.8,2.69906]
[1732848131832,5.420378,3583.5,3582.8,2.42]
[1732848132038,0.279,3583.7,3583.3,0.27902]
[1732848132344,1.12099,3583.8,3583.4,0.69911]
[1732848132543,1.12099,3583.8,3583.4,1.90651]
[1732848132740,0.842,3583.8,3583.4,1.6275]
[1732848132935,0.279,3583.7,3583.4,1.6275]
[1732848133347,0.27903,3583.3,3583.0,3.2078]
[1732848133635,0.27902,3583.4,3583.1,0.4201]
[1732848133839,0.27902,3583.4,3583.2,40.8]
[1732848134037,0.27902,3583.5,3583.2,40.8]
[1732848134344,0.27903,3583.3,3583.2,40.8]
[1732848134542,0.27903,3583.3,3583.2,40.99352117]
[1732848135133,0.27902,3583.4,3583.2,44.77352117]
[1732848135334,0.27902,3583.4,3583.3,0.19352117]
[1732848136335,0.842,3583.8,3583.2,40.8]
[1732848136537,0.27902,3583.4,3583.2,40.92]
[1732848136738,0.27903,3583.3,3583.2,40.92]
[1732848140148,0.27903,3583.3,3583.2,41.03882986]
[1732848142546,3.29310473,3583.7,3583.2,41.03882986]
[1732848142747,0.27903,3583.3,3583.2,40.92]
[1732848142948,0.27903,3583.3,3583.2,41.03579637]
[1732848143150,3.29310473,3583.7,3583.2,41.03579637]
[1732848143151,0.27902,3583.4,3583.2,41.03579637]
[1732848143349,0.27902,3583.4,3583.3,0.11579637]
[1732848143653,0.27902,3583.4,3583.3,3.20579637]
[1732848144345,0.27902,3583.4,3583.3,0.11579637]
[1732848146445,0.27902,3583.4,3583.1,0.27904]
[1732848146750,0.27902,3583.4,3583.2,0.11579097]
[1732848147045,0.27902,3583.4,3583.3,0.11579097]
[1732848147449,0.4268,3583.6,3583.3,0.11579097]
[1732848147649,0.27901,3583.5,3583.4,0.11579097]
[1732848147843,0.27901,3583.5,3583.4,0.96119097]
[1732848149352,4.66761306,3583.5,3583.4,0.11579097]
[1732848150250,4.66761306,3583.5,3583.4,0.11579791]
[1732848150251,5.69616144,3583.5,3583.4,0.11579791]
[1732848153346,5.41715144,3583.5,3583.4,0.1158204]
[1732848153651,5.69329535,3583.5,3583.4,0.1158204]
[1732848153957,1.30755838,3583.5,3583.4,0.1158204]
[1732848154658,6.76364798,3583.5,3583.4,0.1158204]
[1732848155249,1.30755838,3583.5,3583.4,0.1158204]
[1732848155456,0.27903,3583.2,3583.1,0.4201]
[1732848155753,1.30757838,3583.2,3583.1,0.53599887]
[1732848156256,2.14387838,3583.2,3583.1,0.53599887]
[1732848156852,1.30757838,3583.2,3583.1,0.53604491]
[1732848157057,1.30757838,3583.2,3583.1,3.45604491]
[1732848157058,1.02854838,3583.2,3583.1,3.45604491]
[1732848157253,3.28946034,3583.5,3583.1,6.24724491]
[1732848157553,0.279,3583.7,3583.4,3.48681]
[1732848157756,0.279,3583.7,3583.5,0.54204491]
[1732848157948,0.279,3583.7,3583.6,0.55864491]
[1732848158149,0.279,3583.7,3583.6,2.26524491]
[1732848158553,0.279,3583.7,3583.6,2.46064313]
[1732848159155,0.27899,3583.8,3583.6,2.46064313]
[1732848159459,0.27899,3583.8,3583.7,0.31134313]
[1732848161360,3.48679,3583.8,3583.7,0.31134313]
[1732848162054,3.48679,3583.8,3583.7,0.30786801]
[1732848162251,3.48679,3583.8,3583.7,0.11594491]
[1732848162454,11.69157453,3583.8,3583.7,0.11594491]
[1732848162958,10.66302615,3583.8,3583.7,0.11594491]
[1732848163355,7.87262615,3583.8,3583.7,0.11594491]
[1732848163550,10.66302615,3583.8,3583.7,0.11594491]
[1732848163751,7.59363615,3583.8,3583.7,0.11994597]
[1732848163951,10.66302615,3583.8,3583.7,0.11994597]
[1732848164350,7.30573838,3583.8,3583.7,0.11994597]
[1732848164551,11.6909913,3583.8,3583.7,0.11994597]
[1732848164753,0.27903,3583.2,3583.1,0.4302]
[1732848164958,1.30757838,3583.2,3583.1,0.7421443]
[1732848166959,1.02854838,3583.2,3583.1,0.5501416]
[1732848167153,3.28920153,3583.4,3583.1,1.01207741]
[1732848167456,5.48229519,3583.8,3583.3,3.2078]
[1732848167457,3.28920153,3583.8,3583.3,3.2078]
[1732848167662,4.31774991,3583.9,3583.4,0.8609]
[1732848167959,0.279,3583.6,3583.5,41.11180703]
[1732848168164,0.279,3583.6,3583.5,41.13180703]
[1732848168555,0.279,3583.6,3583.5,41.27412935]
[1732848169865,0.279,3583.6,3583.5,41.13180703]
[1732848170563,0.279,3583.6,3583.5,0.31180703]
[1732848170767,3.56820153,3583.6,3583.5,0.31180703]
[1732848171360,5.61357582,3583.6,3583.5,0.31180703]
[1732848171560,10.00097483,3583.6,3583.5,0.11991453]
[1732848171760,5.61357582,3583.6,3583.5,0.11991453]
[1732848173667,4.38937212,3583.7,3583.5,0.45991453]
[1732848173861,3.29179754,3583.7,3583.6,0.11991453]
[1732848174165,3.29179754,3583.8,3583.6,0.82662755]
[1732848174357,3.29179754,3583.8,3583.7,0.11872755]
[1732848174563,3.29179754,3583.8,3583.7,4.49872755]
[1732848175067,3.29179754,3583.8,3583.7,4.49870177]
[1732848175263,0.27898,3583.9,3583.7,7.28910177]
[1732848175264,3.29179754,3583.9,3583.7,7.28910177]
[1732848175571,3.57077754,3583.9,3583.8,0.11870177]
[1732848175961,3.57077754,3583.9,3583.8,2.90910177]
[1732848177264,6.49959754,3584.1,3583.8,0.11870177]
[1732848177462,3.57077754,3584.0,3583.9,0.11870177]
[1732848178471,0.27898,3584.0,3583.9,0.11870177]
[1732848180669,3.29179754,3584.1,3583.9,0.11861235]
[1732848180877,0.27899,3583.9,3583.6,0.4289]
[1732848181081,0.27899,3583.8,3583.7,0.11861882]
[1732848181474,0.27898,3583.9,3583.7,0.11861882]
[1732848181772,3.29179754,3584.0,3583.8,0.11861882]
[1732848181973,0.27897,3584.0,3583.9,0.11861882]
[1732848182169,0.27897,3584.0,3583.9,2.98861882]
[1732848182375,0.27897,3584.0,3583.9,0.11861882]
[1732848183475,0.27897,3584.0,3583.9,0.11856618]
[1732848183877,0.27897,3584.0,3583.9,2.91856618]
[1732848186482,0.27897,3584.0,3583.9,2.8]
[1732848186681,0.27897,3584.0,3583.9,2.91858792]
[1732848187889,3.2078,3584.0,3583.3,40.8]
[1732848188084,0.27902,3583.4,3583.3,4.1]
[1732848188288,1.30757945,3583.4,3583.3,4.1]
[1732848189984,0.27903,3583.2,3583.1,41.2323]
[1732848191388,0.4476,3583.3,3583.1,41.2323]
[1732848191587,1.74957945,3583.4,3583.1,41.51134]
[1732848191790,1.47055945,3583.4,3583.1,45.4923]
[1732848191984,0.27903,3583.2,3583.1,45.4923]
[1732848192188,1.02855945,3583.4,3583.1,45.4923]
[1732848192485,1.02855945,3583.4,3583.2,0.72663]
[1732848192685,1.30758945,3583.4,3583.2,2.5576]
[1732848192991,0.27903,3583.3,3583.2,2.5576]
[1732848193881,0.27903,3583.2,3583.1,41.2323]
[1732848194083,1.45215945,3583.4,3583.1,41.2323]
[1732848194292,3.28882915,3583.6,3583.1,42.1723]
[1732848194486,4.38902994,3583.8,3583.4,0.27901]
[1732848194487,0.279,3583.7,3583.4,0.27901]
[1732848194789,0.279,3583.6,3583.5,0.8644]
[1732848194982,0.279,3583.6,3583.5,2.8744]
[1732848195186,0.279,3583.7,3583.5,2.8744]
[1732848195384,0.22148946,3584.2,3583.5,2.8744]
[1732848195385,3.28882915,3584.0,3583.6,7.02675945]
[1732848195581,6.54730753,3584.8,3583.9,5.37929832]
[1732848195582,3.28882915,3584.6,3583.9,5.37929832]
[1732848195787,0.434,3585.0,3584.5,3.2078]
[1732848195992,0.27891,3584.9,3584.6,40.8]
[1732848196184,1.30746945,3584.8,3584.6,41.2054]
[1732848196384,1.02855945,3584.8,3584.6,41.2054]
[1732848196590,0.434,3585.0,3584.6,41.2054]
[1732848197187,3.72962915,3585.2,3584.6,41.2054]
[1732848197388,3.28882915,3585.6,3585.1,4.23635945]
[1732848197592,6.54730753,3586.4,3585.9,0.27882]
[1732848197593,3.28882915,3586.3,3585.9,0.27882]
[1732848197792,1.46255945,3586.5,3586.0,3.2078]
[1732848198090,1.46255945,3586.5,3586.1,40.8]
[1732848198290,3.28882915,3586.9,3586.1,40.8]
[1732848198588,6.1060867,3587.3,3586.7,0.27876]
[1732848198789,5.8273667,3587.3,3586.4,3.2078]
[1732848198995,2.53853755,3587.3,3586.4,7.5778]
[1732848199195,0.415,3587.3,3586.8,0.27875]
[1732848199393,0.415,3587.3,3586.8,3.2078]
[1732848199793,0.69372,3587.3,3586.8,3.2078]
[1732848199994,0.69372,3587.3,3586.8,3.48655]
[1732848200192,0.69371,3587.3,3586.9,0.12253259]
[1732848200492,0.69371,3587.3,3586.8,3.48655]
[1732848200493,0.415,3587.3,3586.8,3.48655]
[1732848200991,0.415,3587.3,3586.8,3.2078]
[1732848200992,0.69372,3587.3,3586.8,3.2078]
[1732848201197,0.415,3587.3,3586.8,3.2078]
[1732848201390,0.415,3587.3,3586.9,0.27875]
[1732848201696,0.415,3587.3,3586.8,3.2078]
[1732848202095,0.69372,3587.3,3586.8,3.48655]
[1732848202299,0.69372,3587.3,3586.8,3.2078]
[1732848202300,0.415,3587.3,3586.8,3.2078]
[1732848202796,0.27873,3587.1,3586.8,3.2078]
[1732848202991,0.415,3587.3,3586.8,3.2078]
[1732848203186,2.12353755,3587.4,3586.8,3.2078]
[1732848203399,2.12353755,3587.4,3586.9,0.27874]
[1732848203697,0.4208,3587.6,3586.8,3.2078]
[1732848203895,0.4208,3587.6,3587.1,0.27872]
[1732848204091,3.2078,3587.7,3586.8,3.2078]
[1732848204294,3.2078,3587.7,3587.2,0.27872]
[1732848204489,3.2078,3587.7,3586.9,0.4303]
[1732848204690,0.4085,3587.8,3586.9,0.4303]
[1732848204894,2.12353755,3588.2,3587.2,3.2078]
[1732848205095,2.12353755,3588.2,3587.5,0.27869]
[1732848205298,2.40218755,3588.2,3587.5,0.27869]
[1732848205500,2.40218755,3588.2,3587.3,0.4412]
[1732848205501,2.12353755,3588.2,3587.3,0.4412]
[1732848205697,0.27867,3587.9,3587.3,0.4412]
[1732848205897,0.27867,3587.9,3587.3,0.9412]
[1732848206096,0.27867,3587.9,3587.3,1.21991]
[1732848206297,0.4486,3588.3,3587.6,3.2078]
[1732848206602,3.48642,3588.6,3587.7,0.27868]
[1732848207000,3.2078,3588.6,3587.6,3.2078]
[1732848207205,3.2078,3588.6,3587.8,0.27867]
[1732848207500,3.2078,3588.6,3587.6,3.2078]
[1732848207697,3.2078,3588.6,3587.8,0.27867]
[1732848207900,0.27862,3588.5,3587.7,0.27868]
[1732848208195,0.27862,3588.5,3587.6,3.48649]
[1732848208196,2.40215755,3588.5,3587.6,3.48649]
[1732848208402,2.40215755,3588.5,3587.9,40.8]
[1732848208603,2.12353755,3588.1,3587.9,40.8]
[1732848208802,2.12353755,3588.1,3587.6,3.2078]
[1732848209197,2.12353755,3588.1,3587.3,0.4412]
[1732848209399,2.12353755,3588.1,3587.4,0.2787]
[1732848209601,2.12353755,3588.1,3587.3,0.4412]